bitfinex/quotes_SOLUSD_20240905
["timestamp","ask_amount","ask_price","bid_price","bid_amount"]
[1725560182112,1.91579763,130.51,130.48,7.6638]
[1725560182317,1.91579763,130.51,130.49,5.74342503]
[1725560182515,27.6612,130.53,130.49,7.6633]
[1725560183435,20.0,130.53,130.51,19.1553]
[1725560183643,21.91541613,130.54,130.51,19.1553]
[1725560184413,20.0,130.54,130.51,19.1553]
[1725560185254,21.9153121,130.54,130.51,19.1553]
[1725560185440,20.0,130.54,130.51,26.8173]
[1725560185918,21.91527461,130.55,130.51,26.8173]
[1725560186236,21.91529669,130.55,130.51,26.8173]
[1725560186840,1.91529463,130.54,130.51,26.8173]
[1725560187024,3.24223422,130.54,130.51,26.8173]
[1725560187837,1.32693959,130.54,130.51,26.8173]
[1725560188348,3.24223186,130.54,130.51,26.8173]
[1725560188643,1.32693959,130.54,130.51,26.8173]
[1725560189017,3.24223311,130.54,130.51,26.8173]
[1725560189742,1.32693959,130.54,130.53,19.1526]
[1725560190143,1.32693959,130.54,130.51,7.662]
[1725560190544,23.24240168,130.54,130.51,7.662]
[1725560191720,21.32693959,130.54,130.51,7.662]
[1725560191920,21.32693959,130.54,130.5,19.1557]
[1725560191921,21.32693959,130.54,130.52,7.6615]
[1725560192231,1.32693959,130.54,130.52,7.6615]
[1725560192427,3.2420691,130.54,130.51,7.6619]
[1725560192727,1.32693959,130.54,130.53,7.661]
[1725560193250,1.91504309,130.58,130.53,9.19303447]
[1725560193565,1.91480627,130.59,130.54,19.1508]
[1725560193848,1.91480627,130.59,130.56,7.6588]
[1725560194220,1.91458753,130.61,130.56,7.6588]
[1725560194413,1.91458795,130.6,130.57,1.53167036]
[1725560194725,19.1508,130.65,130.58,1.53158629]
[1725560194927,26.8049,130.65,130.61,7.6562]
[1725560195253,7.6541,130.65,130.61,7.6562]
[1725560195624,18.57687226,130.67,130.62,7.6557]
[1725560195830,1.91385163,130.66,130.62,7.6557]
[1725560196034,3.24016805,130.66,130.62,7.6557]
[1725560196744,10.89366805,130.66,130.61,7.6562]
[1725560197133,27.654,130.65,130.61,7.6562]
[1725560197755,20.0,130.65,130.61,7.6562]
[1725560198243,21.91385996,130.65,130.61,7.6562]
[1725560198558,21.91385996,130.65,130.61,8.87946217]
[1725560198732,20.0,130.65,130.61,7.6562]
[1725560198933,21.91383478,130.65,130.61,7.6562]
[1725560199749,1.32631642,130.66,130.62,20.66985802]
[1725560200248,1.32631642,130.66,130.63,1.53080664]
[1725560200454,1.91346926,130.69,130.64,19.1361]
[1725560200626,1.91346926,130.69,130.65,1.5306142]
[1725560201149,1.91346926,130.69,130.64,19.1361]
[1725560201333,29.56556926,130.69,130.64,26.7905]
[1725560201539,7.6524,130.68,130.64,26.7905]
[1725560201856,21.91345587,130.67,130.64,26.7905]
[1725560202041,29.56635587,130.67,130.64,19.1361]
[1725560202223,21.91345587,130.67,130.64,19.1361]
[1725560203159,1.32829019,130.66,130.64,19.1361]
[1725560204653,1.32829019,130.66,130.63,7.655]
[1725560205158,21.32829019,130.66,130.63,7.655]
[1725560205662,1.91356615,130.65,130.63,7.655]
[1725560205860,1.91366024,130.64,130.61,19.1396]
[1725560206160,1.91366024,130.64,130.58,19.1442]
[1725560206366,7.6556,130.63,130.59,7.6574]
[1725560206663,1.91415601,130.62,130.59,7.6574]
[1725560208139,1.41415601,130.62,130.59,7.6574]
[1725560212181,9.06972944,130.63,130.6,7.6569]
[1725560214671,24.6724584,130.64,130.6,7.6569]
[1725560214873,20.0,130.63,130.6,7.6569]
[1725560217471,20.0,130.63,130.59,7.6573]
[1725560217472,1.91402686,130.62,130.59,7.6573]
[1725560217669,1.91402686,130.62,130.6,7.6569]
[1725560217876,20.0,130.63,130.61,7.6563]
[1725560218573,20.0,130.63,130.6,7.6567]
[1725560220368,1.32829019,130.66,130.64,7.6542]
[1725560220369,3.24220641,130.66,130.64,7.6542]
[1725560220568,1.32829019,130.66,130.64,7.6542]
[1725560220771,7.6519,130.69,130.65,9.1845215]
[1725560221078,25.25876234,130.7,130.66,7.6532]
[1725560221443,7.6517,130.69,130.65,26.7888]
[1725560221645,1.9132909,130.68,130.65,26.7888]
[1725560222158,1.91309791,130.71,130.67,19.1315]
[1725560222567,1.91309791,130.71,130.68,7.6521]
[1725560223070,1.91286164,130.72,130.68,7.6521]
[1725560223459,1.3297382,130.7,130.68,7.6521]
[1725560224377,1.3297382,130.7,130.68,9.18235647]
[1725560226170,1.3297382,130.7,130.69,1.53026706]
[1725560226353,1.3297382,130.7,130.69,9.18186706]
[1725560228282,1.3297382,130.7,130.69,7.6516]
[1725560228970,1.3297382,130.7,130.68,7.6522]
[1725560230875,1.3297382,130.7,130.67,19.1315]
[1725560231058,1.3297382,130.7,130.64,19.1353]
[1725560231252,3.24295629,130.7,130.64,19.1353]
[1725560231454,7.6522,130.69,130.65,7.654]
[1725560231652,1.91324522,130.68,130.65,7.654]
[1725560232574,7.653,130.67,130.64,19.1353]
[1725560232877,1.9135131,130.66,130.64,19.1353]
[1725560233465,9.56649233,130.67,130.64,19.1353]
[1725560234292,27.6524,130.68,130.64,26.7898]
[1725560234656,20.0,130.68,130.65,7.6539]
[1725560234976,10.89442433,130.7,130.66,7.6531]
[1725560235278,27.6517,130.69,130.66,7.6531]
[1725560235481,27.6517,130.69,130.64,19.1353]
[1725560235482,27.6517,130.69,130.65,7.6537]
[1725560236083,27.6517,130.69,130.66,7.6533]
[1725560236259,9.56544989,130.68,130.64,26.7895]
[1725560236466,1.91347749,130.67,130.64,26.7895]
[1725560236850,46.91347749,130.67,130.64,26.7895]
[1725560237270,9.56577063,130.68,130.64,26.7895]
[1725560237666,29.56517874,130.69,130.65,7.6539]
[1725560237882,45.0,130.68,130.65,8.21516549]
[1725560238182,52.6523,130.68,130.64,26.7895]
[1725560239567,52.6523,130.68,130.65,7.6539]
[1725560239876,27.6519,130.69,130.65,7.6539]
[1725560240262,27.6519,130.69,130.65,9.1843743]
[1725560240467,27.6519,130.69,130.65,7.6539]
[1725560240676,45.0,130.68,130.65,7.6539]
[1725560241484,46.91322597,130.68,130.65,7.6539]
[1725560244792,1.91322692,130.67,130.64,26.7896]
[1725560245586,52.6528,130.68,130.65,7.6539]
[1725560246191,20.0,130.69,130.66,20.66407519]
[1725560246393,29.56442869,130.71,130.67,7.6528]
[1725560246689,1.32993142,130.68,130.67,7.6528]
[1725560246989,20.0,130.69,130.67,7.6528]
[1725560247175,1.32987532,130.68,130.67,7.6528]
[1725560248191,1.32987532,130.68,130.66,26.7866]
[1725560249088,1.32987532,130.68,130.66,19.1335]
[1725560249089,46.32987532,130.68,130.66,19.1335]
[1725560249619,1.91326537,130.67,130.64,26.7907]
[1725560251304,53.98217532,130.68,130.64,19.1364]
[1725560251602,46.32987532,130.68,130.66,7.6533]
[1725560252021,1.32987532,130.68,130.67,9.18323894]
[1725560252383,1.32987532,130.68,130.67,59.1830376]
[1725560252579,24.0465,130.76,130.72,7.6495]
[1725560252807,1.91220431,130.77,130.73,7.6492]
[1725560252808,9.55940431,130.77,130.73,7.6492]
[1725560253199,1.91206588,130.76,130.73,7.6492]
[1725560253708,1.91206837,130.79,130.75,7.6481]
[1725560253913,7.6456,130.8,130.75,9.17744594]
[1725560254086,9.55752919,130.79,130.75,7.6481]
[1725560254404,1.91173089,130.78,130.73,19.1232]
[1725560254609,7.6471,130.77,130.73,26.7722]
[1725560254820,1.91191205,130.79,130.74,7.6487]
[1725560255108,1.91191205,130.79,130.73,19.1232]
[1725560255109,9.55781205,130.79,130.75,7.6481]
[1725560255284,7.6459,130.79,130.75,7.6481]
[1725560255488,1.33139443,130.78,130.75,7.6481]
[1725560255792,10.88957877,130.78,130.74,7.6486]
[1725560256187,10.88957877,130.78,130.73,26.7723]
[1725560256404,3.24307877,130.78,130.69,22.9177]
[1725560256611,7.6495,130.73,130.66,72.8764]
[1725560256782,46.91260887,130.72,130.68,7.6517]
[1725560256988,7.65,130.72,130.68,7.6517]
[1725560257513,1.912719,130.75,130.68,7.6517]
[1725560257684,7.6494,130.73,130.68,7.6517]
[1725560257884,46.91268106,130.72,130.68,7.6517]
[1725560258081,46.91268106,130.72,130.69,7.6515]
[1725560259502,45.0,130.72,130.69,7.6515]
[1725560259892,45.0,130.73,130.69,7.6515]
[1725560260092,9.56097823,130.75,130.71,7.6502]
[1725560260307,27.6488,130.74,130.7,7.651]
[1725560260500,1.91243311,130.73,130.7,7.651]
[1725560261319,9.56213311,130.73,130.69,26.7802]
[1725560261488,45.0,130.72,130.69,26.7802]
[1725560261684,1.9126987,130.71,130.69,19.1286]
[1725560261890,45.0,130.72,130.69,19.1286]
[1725560261891,46.9126987,130.72,130.69,19.1286]
[1725560262615,54.5626987,130.72,130.69,19.1286]
[1725560263293,46.9126987,130.72,130.69,26.7802]
[1725560263498,45.0,130.72,130.69,26.7802]
[1725560264808,52.65,130.72,130.69,19.1286]
[1725560265120,1.91269175,130.71,130.69,19.1286]
[1725560265502,52.65,130.72,130.69,19.1286]
[1725560265694,1.91276821,130.71,130.69,19.1286]
[1725560267106,52.65,130.72,130.69,19.1286]
[1725560268612,1.91276321,130.71,130.69,19.1286]
[1725560268823,52.65,130.72,130.69,19.1286]
[1725560269534,1.91276658,130.71,130.69,19.1286]
[1725560270120,7.6528,130.67,130.63,7.6549]
[1725560270432,1.91350418,130.66,130.64,19.1355]
[1725560270604,46.91350418,130.66,130.63,7.6549]
[1725560271297,45.0,130.66,130.63,7.6549]
[1725560271498,7.6525,130.68,130.64,9.18527961]
[1725560271716,20.0,130.67,130.65,26.7885]
[1725560271920,1.91347452,130.69,130.66,7.6531]
[1725560272124,20.0,130.69,130.66,7.6531]
[1725560273028,20.0,130.69,130.67,7.6527]
[1725560273215,1.91299774,130.72,130.68,1.53037343]
[1725560273396,1.91299774,130.72,130.67,19.1317]
[1725560273605,9.56289774,130.72,130.68,9.1822336]
[1725560273806,20.0,130.71,130.68,9.1822336]
[1725560274824,20.0,130.71,130.69,7.6516]
[1725560275012,20.0,130.72,130.69,7.6516]
[1725560275223,7.6488,130.74,130.7,26.7782]
[1725560275797,1.33191181,130.73,130.7,26.7782]
[1725560276202,3.24436927,130.73,130.7,26.7782]
[1725560276499,10.89386927,130.73,130.7,19.1275]
[1725560276696,45.0,130.72,130.7,19.1275]
[1725560277316,46.91273006,130.72,130.7,19.1275]
[1725560278422,45.0,130.72,130.7,26.7784]
[1725560278929,1.33191181,130.73,130.72,26.7747]
[1725560279435,1.91254459,130.76,130.72,26.7747]
[1725560279807,1.91254459,130.76,130.69,19.1282]
[1725560280011,1.91254459,130.76,130.71,7.6504]
[1725560280219,7.6483,130.75,130.71,26.7765]
[1725560280442,45.0,130.74,130.72,7.6498]
[1725560280734,1.91223946,130.75,130.72,7.6498]
[1725560281238,46.91223946,130.75,130.72,7.6498]
[1725560281607,45.0,130.75,130.72,9.17965571]
[1725560281811,45.0,130.75,130.72,7.6498]
[1725560282045,1.33150329,130.74,130.72,7.6498]
[1725560282340,1.33150329,130.74,130.73,7.6493]
[1725560283422,1.33150329,130.74,130.73,9.17885368]
[1725560283627,1.33150329,130.74,130.73,7.6493]
[1725560284005,9.55978533,130.76,130.72,26.7731]
[1725560284232,1.91223947,130.75,130.69,19.1278]
[1725560284408,7.6494,130.73,130.7,7.651]
[1725560284605,45.0,130.72,130.7,7.651]
[1725560284812,52.6493,130.73,130.7,7.651]
[1725560285534,1.91256397,130.72,130.69,26.7794]
[1725560285729,7.6508,130.71,130.67,26.7846]
[1725560285929,45.0,130.7,130.67,26.7846]
[1725560286236,45.0,130.7,130.68,7.6521]
[1725560286436,20.0,130.72,130.69,26.7808]
[1725560286610,20.0,130.72,130.7,7.651]
[1725560286939,1.9125118,130.74,130.71,19.1263]
[1725560287236,65.0,130.74,130.71,19.1263]
[1725560287411,65.0,130.74,130.71,26.7765]
[1725560290322,65.0,130.74,130.72,7.6498]
[1725560290531,20.0,130.74,130.72,7.6498]
[1725560290734,9.56000525,130.76,130.73,7.6493]
[1725560290921,9.55911737,130.77,130.74,1.52961321]
[1725560291123,45.0,130.76,130.73,7.6493]
[1725560291434,9.55911737,130.77,130.73,7.6493]
[1725560292228,20.0,130.76,130.73,7.6493]
[1725560292432,21.3311518,130.76,130.73,7.6493]
[1725560292742,30.89076972,130.76,130.72,7.6498]
[1725560292948,30.89076972,130.76,130.71,19.1263]
[1725560292949,52.6485,130.75,130.71,19.1263]
[1725560293236,52.6485,130.75,130.71,26.7762]
[1725560293940,54.56072054,130.75,130.71,26.7762]
[1725560294527,54.56072054,130.75,130.72,7.6498]
[1725560295139,7.6488,130.74,130.71,26.7766]
[1725560295436,1.91246343,130.73,130.71,26.7766]
[1725560295641,1.91246343,130.73,130.71,19.1263]
[1725560296020,9.56129928,130.74,130.71,19.1263]
[1725560296635,54.56061448,130.75,130.72,7.6498]
[1725560299519,7.6489,130.74,130.71,26.7766]
[1725560299846,46.91247818,130.73,130.71,26.7766]
[1725560300043,46.91247818,130.73,130.69,19.1291]
[1725560300248,46.91247818,130.73,130.66,9.58692493]
[1725560300457,7.6514,130.7,130.67,5.70697369]
[1725560300621,7.6514,130.7,130.68,5.70697369]
[1725560300823,7.6514,130.7,130.69,5.70697369]
[1725560301033,7.6514,130.7,130.67,7.6528]
[1725560301034,45.0,130.7,130.67,7.6528]
[1725560301349,46.91292714,130.7,130.68,5.70777096]
[1725560301537,1.91292714,130.7,130.69,5.70777096]
[1725560301718,46.91292714,130.7,130.69,5.70777096]
[1725560303032,54.56402714,130.7,130.69,5.70777096]
[1725560303343,74.56402714,130.7,130.69,5.70777096]
[1725560303540,74.56402714,130.7,130.69,5.71001943]
[1725560305949,7.6496,130.73,130.69,13.36161943]
[1725560306140,9.56260218,130.72,130.7,5.71001943]
[1725560306349,9.56320363,130.71,130.67,7.6525]
[1725560306547,1.91299271,130.7,130.68,14.84666928]
[1725560306844,1.91299271,130.7,130.69,5.70963851]
[1725560307031,7.6511,130.7,130.65,7.6536]
[1725560307226,46.91331939,130.69,130.66,14.8500689]
[1725560307431,46.91331939,130.69,130.67,14.8500689]
[1725560307641,46.91331939,130.69,130.68,5.71094999]
[1725560307826,66.91331939,130.69,130.68,5.71094999]
[1725560308235,72.6516,130.69,130.68,5.71094999]
[1725560309028,73.98354304,130.69,130.68,5.71094999]
[1725560313042,90.60914304,130.69,130.68,5.71094999]
[1725560313239,7.6531,130.67,130.63,22.99552845]
[1725560313445,46.91366057,130.66,130.64,14.86256247]
[1725560313659,46.91366057,130.66,130.65,14.86256247]
[1725560315552,45.0,130.66,130.65,14.86256247]
[1725560317758,1.91357,130.68,130.65,14.86256247]
[1725560317977,3.24514487,130.69,130.66,22.51546247]
[1725560318260,1.33194304,130.69,130.68,7.6522]
[1725560318461,1.33194304,130.69,130.68,22.49267384]
[1725560318651,1.33194304,130.69,130.68,13.36795868]
[1725560318959,1.91308277,130.71,130.68,13.36795868]
[1725560319165,7.6503,130.72,130.69,5.71575868]
[1725560319364,1.91292512,130.71,130.68,7.6522]
[1725560319558,1.91292512,130.71,130.69,5.70146951]
[1725560319760,1.91292512,130.71,130.68,7.6522]
[1725560320062,1.91292512,130.71,130.69,5.70146424]
[1725560320358,21.91292512,130.71,130.68,7.6522]
[1725560320563,21.91292512,130.71,130.69,5.70003783]
[1725560320864,45.0,130.7,130.68,7.6522]
[1725560321050,45.0,130.7,130.69,5.6974229]
[1725560321254,20.0,130.71,130.69,5.6974229]
[1725560321546,1.33220481,130.7,130.68,7.6522]
[1725560321745,1.33220481,130.7,130.69,5.69656249]
[1725560321953,3.24511217,130.7,130.69,5.69656249]
[1725560322148,30.89621217,130.7,130.67,26.7846]
[1725560322340,30.89621217,130.7,130.68,5.69671741]
[1725560322543,30.89621217,130.7,130.67,26.7846]
[1725560322844,30.89621217,130.7,130.68,5.69669672]
[1725560323045,45.0,130.69,130.67,26.7846]
[1725560323248,45.0,130.69,130.68,5.69843879]
[1725560323979,45.0,130.69,130.68,5.69947807]
[1725560324344,45.0,130.69,130.68,14.81959093]
[1725560324949,45.0,130.69,130.67,26.7846]
[1725560325155,45.0,130.69,130.68,5.70021601]
[1725560325573,21.33220481,130.7,130.68,22.47435872]
[1725560325867,1.33220481,130.7,130.69,5.70021601]
[1725560326042,1.33220481,130.7,130.68,7.6522]
[1725560326249,1.33220481,130.7,130.69,5.69876795]
[1725560326655,1.33220481,130.7,130.68,7.6522]
[1725560326862,1.33220481,130.7,130.69,5.69952883]
[1725560330159,1.33220481,130.7,130.69,5.70372952]
[1725560330366,1.33220481,130.7,130.69,14.83102071]
[1725560331280,1.33220481,130.7,130.69,14.23312071]
[1725560331845,10.8961527,130.7,130.69,14.23312071]
[1725560332076,75.8961527,130.7,130.66,7.6531]
[1725560332369,75.8961527,130.7,130.67,9.12495504]
[1725560332370,20.0,130.69,130.67,9.12495504]
[1725560332554,20.0,130.69,130.68,9.12495504]
[1725560337772,1.33220481,130.7,130.68,16.77705504]
[1725560338068,1.33220481,130.7,130.69,9.12495504]
[1725560339959,1.33220481,130.7,130.68,9.18234551]
[1725560340168,1.33220481,130.7,130.69,9.11968624]
[1725560340467,1.33220481,130.7,130.69,35.90048624]
[1725560341271,1.91237144,130.76,130.73,7.6493]
[1725560341661,9.55997144,130.76,130.72,9.17935631]
[1725560342352,7.6476,130.76,130.72,9.17935631]
[1725560342551,20.0,130.75,130.72,9.17935631]
[1725560343751,20.0,130.75,130.72,7.6496]
[1725560343972,1.33025273,130.74,130.72,7.6496]
[1725560344355,1.33025273,130.74,130.71,26.7755]
[1725560344556,46.33025273,130.74,130.71,26.7755]
[1725560345262,1.33025273,130.74,130.71,26.7755]
[1725560345880,1.33025273,130.74,130.71,26.2938]
[1725560348885,10.89146351,130.74,130.71,18.6437]
[1725560349985,3.24266351,130.74,130.71,26.2942]
[1725560350284,1.33025273,130.74,130.72,7.6498]
[1725560350664,1.33025273,130.74,130.72,9.17959109]
[1725560351173,1.33025273,130.74,130.72,7.6498]
[1725560351369,1.33025273,130.74,130.71,26.2939]
[1725560351680,46.33025273,130.74,130.71,26.2939]
[1725560352291,48.24263602,130.74,130.71,26.2939]
[1725560352787,1.91241281,130.73,130.7,7.6509]
[1725560352998,21.91241281,130.73,130.7,7.6509]
[1725560353884,45.0,130.72,130.69,7.6514]
[1725560354094,1.91268655,130.71,130.68,26.7811]
[1725560354268,46.91273765,130.72,130.69,5.69740348]
[1725560354600,46.91273765,130.72,130.68,26.7811]
[1725560354793,46.91273765,130.72,130.69,5.69742003]
[1725560354973,46.91273765,130.72,130.68,26.7811]
[1725560355173,46.91273765,130.72,130.69,5.69780103]
[1725560355373,46.91273765,130.72,130.68,26.7811]
[1725560355574,46.91273765,130.72,130.69,5.6978868]
[1725560355789,46.91273765,130.72,130.68,26.7811]
[1725560355993,46.91273765,130.72,130.69,5.69788563]
[1725560356186,46.91273765,130.72,130.68,26.7811]
[1725560356388,46.91273765,130.72,130.69,5.69740067]
[1725560356697,46.91273765,130.72,130.68,26.7811]
[1725560356884,46.91273765,130.72,130.69,5.69747786]
[1725560357088,46.91273765,130.72,130.68,26.7811]
[1725560357294,46.91273765,130.72,130.69,5.69738109]
[1725560357585,46.91273765,130.72,130.68,26.7811]
[1725560357800,46.91273765,130.72,130.69,5.6974374]
[1725560358000,46.91273765,130.72,130.68,26.7811]
[1725560358589,7.6511,130.7,130.66,19.1334]
[1725560358898,46.91309055,130.69,130.66,26.7865]
[1725560359273,46.91307837,130.7,130.66,26.7865]
[1725560359475,46.91307837,130.7,130.67,5.70116014]
[1725560359695,7.6523,130.68,130.63,26.7917]
[1725560359903,46.9135335,130.67,130.63,26.7917]
[1725560360101,20.0,130.66,130.63,19.1368]
[1725560360307,46.91365723,130.65,130.62,15.34286235]
[1725560360480,45.0,130.65,130.62,15.34286235]
[1725560360681,45.0,130.65,130.63,9.12635611]
[1725560361003,45.0,130.65,130.62,15.34286235]
[1725560361180,45.0,130.65,130.63,9.12920955]
[1725560361379,45.0,130.65,130.62,22.99856235]
[1725560361579,45.0,130.65,130.63,9.13029173]
[1725560361791,45.0,130.65,130.62,22.99856235]
[1725560361992,45.0,130.65,130.63,9.12899224]
[1725560362199,45.0,130.65,130.62,22.99856235]
[1725560362408,45.0,130.65,130.63,9.1291685]
[1725560362577,45.0,130.65,130.62,22.99856235]
[1725560362976,44.79770189,130.65,130.62,22.99856235]
[1725560363187,44.79770189,130.65,130.63,1.53094404]
[1725560363502,44.79770189,130.65,130.63,9.18604404]
[1725560364280,46.12759481,130.65,130.63,9.18604404]
[1725560365885,46.12759481,130.65,130.62,42.13776235]
[1725560366097,46.12759481,130.65,130.62,43.66869712]
[1725560366592,46.12759481,130.65,130.62,34.48206235]
[1725560366593,48.04126092,130.65,130.62,34.48206235]
[1725560367109,1.91370936,130.64,130.62,15.34286235]
[1725560367306,21.91370936,130.64,130.62,15.34286235]
[1725560367608,45.0,130.63,130.62,15.34286235]
[1725560369507,45.0,130.63,130.61,7.6561]
[1725560370217,45.0,130.63,130.59,75.6221]
[1725560370218,45.0,130.63,130.59,26.7997]
[1725560370382,45.0,130.63,130.57,16.4693]
[1725560370383,46.91381576,130.63,130.58,16.79176768]
[1725560370717,20.0,130.62,130.59,7.6575]
[1725560371009,45.0,130.61,130.59,7.6575]
[1725560371308,46.91413295,130.61,130.58,7.6579]
[1725560371712,45.0,130.61,130.58,7.6579]
[1725560372593,45.0,130.61,130.57,35.616]
[1725560372594,45.0,130.61,130.59,7.6575]
[1725560374303,20.0,130.62,130.59,7.6575]
[1725560374719,21.91406732,130.63,130.59,7.6575]
[1725560374912,20.0,130.63,130.6,9.18799647]
[1725560375215,3.2438885,130.65,130.62,7.6555]
[1725560375394,21.32989292,130.65,130.62,7.6555]
[1725560375592,20.0,130.64,130.62,7.6555]
[1725560376194,20.0,130.64,130.62,9.1864438]
[1725560376392,21.32989292,130.65,130.62,9.1864438]
[1725560376616,21.32989292,130.65,130.62,7.6555]
[1725560376788,45.0,130.64,130.62,7.6555]
[1725560377316,1.91368757,130.63,130.59,7.657]
[1725560377490,1.91368757,130.63,130.58,19.1442]
[1725560377890,1.91368757,130.63,130.6,7.6565]
[1725560378690,45.0,130.64,130.61,7.6563]
[1725560378904,45.0,130.64,130.6,19.142]
[1725560378905,45.0,130.64,130.62,7.6556]
[1725560379193,21.32989292,130.65,130.62,7.6556]
[1725560379514,23.24358974,130.65,130.62,7.6556]
[1725560380889,45.0,130.64,130.62,7.6556]
[1725560385001,1.91372509,130.63,130.6,26.7987]
[1725560385192,1.91372509,130.63,130.6,19.142]
[1725560385193,29.56902509,130.63,130.6,19.142]
[1725560385398,29.56902509,130.63,130.58,38.2897]
[1725560385399,45.0,130.62,130.59,7.6573]
[1725560385599,46.33028324,130.62,130.59,7.6573]
[1725560386122,48.24438328,130.62,130.59,7.6573]
[1725560388924,48.24438328,130.62,130.58,19.1451]
[1725560388925,46.33028324,130.62,130.6,7.6569]
[1725560389221,1.33028324,130.62,130.6,7.6567]
[1725560390013,1.33028324,130.62,130.59,7.6572]
[1725560390224,1.33028324,130.62,130.58,26.8027]
[1725560390603,46.33028324,130.62,130.58,28.33397053]
[1725560391915,46.33028324,130.62,130.59,7.6574]
[1725560392220,1.33028324,130.62,130.61,7.6563]
[1725560392433,1.33028324,130.62,130.61,9.18724377]
[1725560395051,1.33028324,130.62,130.61,7.6563]
[1725560395937,1.33028324,130.62,130.61,9.18725839]
[1725560399339,1.33028324,130.62,130.61,7.6563]
[1725560400435,1.33028324,130.62,130.6,26.7988]
[1725560401941,1.33028324,130.62,130.61,7.6563]
[1725560402254,1.33028324,130.62,130.61,18.35665869]
[1725560402618,1.33028324,130.62,130.61,16.82559404]
[1725560403439,1.33028324,130.62,130.61,18.35637393]
[1725560405947,7.6513,130.7,130.66,7.6534]
[1725560406127,7.6513,130.7,130.66,9.18375671]
[1725560406524,23.4535,130.7,130.66,9.18375671]
[1725560407437,7.6513,130.7,130.66,9.18375671]
[1725560407830,25.36513585,130.72,130.67,19.1321]
[1725560408042,49.1789,130.74,130.68,1.53023715]
[1725560408043,9.56239644,130.73,130.68,1.53023715]
[1725560408244,9.56239644,130.73,130.68,7.652]
[1725560408940,7.6501,130.72,130.68,7.652]
[1725560409141,8.97946584,130.72,130.68,7.652]
[1725560409346,8.97946584,130.72,130.67,19.1321]
[1725560409347,8.97946584,130.72,130.67,26.7848]
[1725560409538,10.89225378,130.72,130.67,26.7848]
[1725560409844,3.24215378,130.72,130.64,76.7892]
[1725560410053,3.24215378,130.72,130.65,7.654]
[1725560410054,7.6519,130.69,130.65,7.654]
[1725560410227,7.6519,130.69,130.65,8.46778105]
[1725560410427,9.56437973,130.7,130.66,1.30109198]
[1725560410627,9.56437973,130.7,130.65,7.654]
[1725560412046,9.56437973,130.7,130.65,9.18453449]
[1725560412745,9.56437973,130.7,130.65,7.654]
[1725560413755,9.56437973,130.7,130.66,1.53047376]
[1725560413957,20.0,130.69,130.66,1.53047376]
[1725560414250,20.0,130.69,130.65,7.654]
[1725560415248,9.56437973,130.7,130.65,7.654]
[1725560415447,20.0,130.69,130.65,7.654]
[1725560415948,20.0,130.69,130.66,7.6533]
[1725560416546,1.32936584,130.72,130.69,19.1291]
[1725560416850,1.32936584,130.72,130.7,1.52995163]
[1725560417231,1.32936584,130.72,130.69,19.1291]
[1725560417757,1.32936584,130.72,130.7,1.52995018]
[1725560417925,1.32936584,130.72,130.69,26.7804]
[1725560418929,1.9126206,130.71,130.66,19.1322]
[1725560419129,9.5635206,130.71,130.66,26.7854]
[1725560419653,9.5635206,130.71,130.67,9.18303575]
[1725560419841,9.5635206,130.71,130.67,7.6527]
[1725560420051,27.6509,130.71,130.67,7.6527]
[1725560420233,1.91290726,130.7,130.67,7.6527]
[1725560420630,29.56383717,130.71,130.67,7.6527]
[1725560420927,20.0,130.71,130.68,7.6522]
[1725560421255,1.32936584,130.72,130.68,20.66082315]
[1725560421554,1.32936584,130.72,130.71,26.7768]
[1725560423436,1.32936584,130.72,130.71,76.7768]
[1725560423640,1.32936584,130.72,130.71,78.3062241]
[1725560424551,1.32936584,130.72,130.71,123.3062241]
[1725560424750,15.8864,130.78,130.76,7.6473]
[1725560424952,15.8864,130.78,130.76,1.52922772]
[1725560425137,15.8864,130.78,130.77,7.647]
[1725560425334,17.21494578,130.78,130.77,7.647]
[1725560425652,17.21494578,130.78,130.76,7.6474]
[1725560431240,17.21494578,130.78,130.75,28.29654197]
[1725560431560,17.21494578,130.78,130.74,7.6487]
[1725560431741,24.86164578,130.78,130.74,7.6487]